[Event "Late-Titled-Tuesday-Blitz-June-04-2024"]
[Site "Chess.com"]
[Date "2024.06.04"]
[Round "5"]
[White "nabukatnezarr"]
[Black "MaxLeto"]
[Result "1-0"]
[WhiteElo "2583"]
[BlackElo "2437"]
[TimeControl "180+1"]
[EndTime "14:55:54 PDT"]
[Termination "nabukatnezarr won by checkmate"]

1. b3 {[%clk 0:03:00.9]} 1... e5 {[%clk 0:02:58.2]} 2. Bb2 {[%clk 0:03:01.8]}
2... Nc6 {[%clk 0:02:58.3]} 3. e3 {[%clk 0:02:58.4]} 3... Nf6 {[%clk 0:02:57.9]}
4. Bb5 {[%clk 0:02:57.3]} 4... Bd6 {[%clk 0:02:56.9]} 5. Ne2 {[%clk 0:02:55.9]}
5... O-O {[%clk 0:02:46.9]} 6. Bxc6 {[%clk 0:02:49.8]} 6... dxc6 {[%clk
0:02:46.3]} 7. d3 {[%clk 0:02:50.7]} 7... Re8 {[%clk 0:02:35.2]} 8. e4 {[%clk
0:02:49.6]} 8... a5 {[%clk 0:02:26.7]} 9. a4 {[%clk 0:02:45.9]} 9... Bg4 {[%clk
0:02:14.6]} 10. h3 {[%clk 0:02:45.2]} 10... Bh5 {[%clk 0:02:11.7]} 11. g4 {[%clk
0:02:40.4]} 11... Bg6 {[%clk 0:02:11.3]} 12. Ng3 {[%clk 0:02:40.7]} 12... Bc5
{[%clk 0:02:10.7]} 13. Qe2 {[%clk 0:02:37.2]} 13... Nd7 {[%clk 0:02:09]} 14. Nd2
{[%clk 0:02:35.6]} 14... Nf8 {[%clk 0:02:07.8]} 15. Nc4 {[%clk 0:02:34.5]} 15...
f6 {[%clk 0:02:07.4]} 16. Nf5 {[%clk 0:02:31.9]} 16... Bb4+ {[%clk 0:02:04.1]}
17. Kf1 {[%clk 0:02:30.3]} 17... Ne6 {[%clk 0:02:00.1]} 18. Bc1 {[%clk
0:02:20.2]} 18... b5 {[%clk 0:01:52.4]} 19. Nb2 {[%clk 0:02:04.1]} 19... Bc3
{[%clk 0:01:46.3]} 20. Ra2 {[%clk 0:02:01.9]} 20... Kh8 {[%clk 0:00:49.5]} 21.
Nd1 {[%clk 0:01:57.3]} 21... Bb4 {[%clk 0:00:42]} 22. Be3 {[%clk 0:01:54.3]}
22... Bf7 {[%clk 0:00:36.4]} 23. h4 {[%clk 0:01:53]} 23... Bf8 {[%clk
0:00:21.2]} 24. h5 {[%clk 0:01:52.7]} 24... h6 {[%clk 0:00:20.8]} 25. Kg2 {[%clk
0:01:42]} 25... Bc5 {[%clk 0:00:19.9]} 26. Nc3 {[%clk 0:01:34.1]} 26... Qb8
{[%clk 0:00:19.3]} 27. Rha1 {[%clk 0:01:26.8]} 27... Qb6 {[%clk 0:00:19.2]} 28.
axb5 {[%clk 0:01:21.4]} 28... Bxe3 {[%clk 0:00:17.1]} 29. fxe3 {[%clk
0:01:21.5]} 29... cxb5 {[%clk 0:00:15.5]} 30. Nd5 {[%clk 0:01:22.1]} 30... Qc5
{[%clk 0:00:14.1]} 31. b4 {[%clk 0:00:55.2]} 31... Qf8 {[%clk 0:00:10.1]} 32.
bxa5 {[%clk 0:00:49]} 32... c6 {[%clk 0:00:06.9]} 33. Nb6 {[%clk 0:00:49.6]}
33... Ra6 {[%clk 0:00:06.6]} 34. c4 {[%clk 0:00:30.3]} 34... Nc5 {[%clk
0:00:05.7]} 35. cxb5 {[%clk 0:00:21.2]} 35... cxb5 {[%clk 0:00:06.6]} 36. Rb1
{[%clk 0:00:21.7]} 36... Bxa2 {[%clk 0:00:05.7]} 37. Rxb5 {[%clk 0:00:20.8]}
37... Be6 {[%clk 0:00:04.6]} 38. Nh4 {[%clk 0:00:21.2]} 38... Rb8 {[%clk
0:00:03.6]} 39. Ng6+ {[%clk 0:00:21.7]} 39... Kg8 {[%clk 0:00:03.9]} 40. Nxf8
{[%clk 0:00:22.6]} 40... Rxf8 {[%clk 0:00:04.1]} 41. Rxc5 {[%clk 0:00:22.4]}
41... Bf7 {[%clk 0:00:03.3]} 42. d4 {[%clk 0:00:22.4]} 42... exd4 {[%clk
0:00:02.4]} 43. Qxa6 {[%clk 0:00:23]} 43... dxe3 {[%clk 0:00:01.9]} 44. Qd3
{[%clk 0:00:23.1]} 44... Re8 {[%clk 0:00:01.2]} 45. Qxe3 {[%clk 0:00:23.5]}
45... Be6 {[%clk 0:00:01.6]} 46. Kg3 {[%clk 0:00:23.2]} 46... Kh7 {[%clk
0:00:01.3]} 47. Rc7 {[%clk 0:00:22.1]} 47... Bg8 {[%clk 0:00:01.2]} 48. Qf4
{[%clk 0:00:22]} 48... Re5 {[%clk 0:00:01.5]} 49. Qxf6 {[%clk 0:00:21.9]} 49...
Rg5 {[%clk 0:00:02.2]} 50. Qf5+ {[%clk 0:00:20.8]} 50... Kh8 {[%clk 0:00:01.4]}
51. Qxg5 {[%clk 0:00:20.6]} 51... hxg5 {[%clk 0:00:02.1]} 52. a6 {[%clk
0:00:21.3]} 52... g6 {[%clk 0:00:02.4]} 53. hxg6 {[%clk 0:00:20.3]} 53... Bf7
{[%clk 0:00:02.1]} 54. a7 {[%clk 0:00:20.3]} 54... Be8 {[%clk 0:00:01.6]} 55.
Re7 {[%clk 0:00:18.9]} 55... Kg8 {[%clk 0:00:01.5]} 56. Rxe8+ {[%clk 0:00:18.9]}
56... Kg7 {[%clk 0:00:01.8]} 57. Re7+ {[%clk 0:00:19.6]} 57... Kh6 {[%clk
0:00:02.7]} 58. Rh7+ {[%clk 0:00:19.4]} 58... Kxg6 {[%clk 0:00:03.2]} 59. Rc7
{[%clk 0:00:20.3]} 59... Kf6 {[%clk 0:00:03.6]} 60. Nc4 {[%clk 0:00:20.9]} 60...
Ke6 {[%clk 0:00:03.9]} 61. a8=Q {[%clk 0:00:20.1]} 61... Kf6 {[%clk 0:00:04.6]}
62. Qa6# {[%clk 0:00:19.6]} 1-0

[Event "Late-Titled-Tuesday-Blitz-June-04-2024"]
[Site "Chess.com"]
[Date "2024.06.04"]
[Round "5"]
[White "LoonsDeKoeben"]
[Black "TimGrutter03"]
[Result "0-1"]
[WhiteElo "2300"]
[BlackElo "2517"]
[TimeControl "180+1"]
[EndTime "14:55:57 PDT"]
[Termination "TimGrutter03 won by resignation"]

1. d4 {[%clk 0:03:00.3]} 1... Nf6 {[%clk 0:02:56.9]} 2. Bf4 {[%clk 0:02:56.2]}
2... c5 {[%clk 0:02:55.2]} 3. d5 {[%clk 0:02:54.9]} 3... Qb6 {[%clk 0:02:48.4]}
4. Qc1 {[%clk 0:02:34.3]} 4... Nxd5 {[%clk 0:02:46.7]} 5. Bg3 {[%clk 0:02:34.1]}
5... g6 {[%clk 0:02:42.4]} 6. e4 {[%clk 0:02:34.8]} 6... Bg7 {[%clk 0:02:36.4]}
7. exd5 {[%clk 0:02:13.2]} 7... Bxb2 {[%clk 0:02:17.2]} 8. Bc7 {[%clk 0:02:13]}
8... Bxc1 {[%clk 0:02:11]} 9. Bxb6 {[%clk 0:02:12.8]} 9... axb6 {[%clk
0:02:11.4]} 10. a4 {[%clk 0:02:07.3]} 10... Bb2 {[%clk 0:02:03.3]} 11. Ra2
{[%clk 0:02:06.9]} 11... Bg7 {[%clk 0:02:04.2]} 12. Bb5 {[%clk 0:01:51.9]} 12...
Na6 {[%clk 0:01:59.4]} 13. c4 {[%clk 0:01:35.8]} 13... Nb4 {[%clk 0:01:53.5]}
14. Re2 {[%clk 0:01:33.2]} 14... O-O {[%clk 0:01:54.4]} 15. Rxe7 {[%clk
0:01:31.1]} 15... Bf6 {[%clk 0:01:48.1]} 16. Re2 {[%clk 0:01:26.7]} 16... d6
{[%clk 0:01:45.5]} 17. Nf3 {[%clk 0:01:07.1]} 17... Bf5 {[%clk 0:01:39.6]} 18.
Kd2 {[%clk 0:00:55.2]} 18... Na2 {[%clk 0:01:04.1]} 19. Re3 {[%clk 0:00:46.8]}
19... g5 {[%clk 0:00:56.2]} 20. h3 {[%clk 0:00:46.3]} 20... g4 {[%clk
0:00:52.9]} 21. hxg4 {[%clk 0:00:40.9]} 21... Bxg4 {[%clk 0:00:53.8]} 22. Kc2
{[%clk 0:00:33]} 22... Bf5+ {[%clk 0:00:50.5]} 23. Kb3 {[%clk 0:00:29.7]} 23...
Nb4 {[%clk 0:00:42.9]} 24. Nc3 {[%clk 0:00:15.8]} 24... Bc2+ {[%clk 0:00:31.8]}
25. Kb2 {[%clk 0:00:15.8]} 25... Bxc3+ {[%clk 0:00:29.9]} 26. Kxc3 {[%clk
0:00:15.1]} 26... Bxa4 {[%clk 0:00:30.4]} 27. Ng5 {[%clk 0:00:04.9]} 27... Bxb5
{[%clk 0:00:28.5]} 28. cxb5 {[%clk 0:00:05.8]} 28... Nxd5+ {[%clk 0:00:27.3]}
29. Kc4 {[%clk 0:00:04]} 29... Nxe3+ {[%clk 0:00:28.2]} 30. fxe3 {[%clk
0:00:04]} 30... Rfe8 {[%clk 0:00:23.7]} 31. Kd5 {[%clk 0:00:01.8]} 31... Re5+
{[%clk 0:00:22.9]} 32. Kxd6 {[%clk 0:00:02.7]} 32... Rxg5 {[%clk 0:00:23.8]} 33.
Kc7 {[%clk 0:00:03.2]} 33... c4 {[%clk 0:00:21.6]} 34. Kxb6 {[%clk 0:00:04.1]}
34... c3 {[%clk 0:00:21.4]} 35. Kxb7 {[%clk 0:00:04.6]} 35... Ra2 {[%clk
0:00:20.7]} 36. b6 {[%clk 0:00:03.5]} 36... c2 {[%clk 0:00:21.2]} 37. Rc1 {[%clk
0:00:03.5]} 37... Rb2 {[%clk 0:00:20.3]} 38. Kc7 {[%clk 0:00:03.5]} 38... Rc5+
{[%clk 0:00:20.5]} 39. Kd6 {[%clk 0:00:02.9]} 39... Rc3 {[%clk 0:00:20.9]} 40.
Kd5 {[%clk 0:00:02]} 40... Rxb6 {[%clk 0:00:20.7]} 41. Kd4 {[%clk 0:00:02.9]}
41... Rc8 {[%clk 0:00:20.8]} 42. Kd3 {[%clk 0:00:03.8]} 42... Rd6+ {[%clk
0:00:20.8]} 43. Ke2 {[%clk 0:00:03.8]} 43... Rd1 {[%clk 0:00:20.7]} 44. Rxd1
{[%clk 0:00:03.4]} 44... cxd1=Q+ {[%clk 0:00:21.6]} 45. Kxd1 {[%clk 0:00:04]}
45... Rc6 {[%clk 0:00:20.1]} 46. Ke2 {[%clk 0:00:04.5]} 46... Rf6 {[%clk
0:00:21]} 47. g4 {[%clk 0:00:03.5]} 47... h5 {[%clk 0:00:21.9]} 48. gxh5 {[%clk
0:00:03.6]} 48... Kh7 {[%clk 0:00:22.4]} 49. Kd3 {[%clk 0:00:04]} 49... Kh6
{[%clk 0:00:23.3]} 50. Ke4 {[%clk 0:00:04.9]} 50... Re6+ {[%clk 0:00:23.7]} 51.
Kf4 {[%clk 0:00:04.9]} 51... Kxh5 {[%clk 0:00:24.6]} 52. e4 {[%clk 0:00:05.8]}
52... Kg6 {[%clk 0:00:24.8]} 53. e5 {[%clk 0:00:05.7]} 53... Ra6 {[%clk
0:00:23.5]} 54. Ke4 {[%clk 0:00:06.1]} 54... Kg5 {[%clk 0:00:22.3]} 55. Kd5
{[%clk 0:00:05.2]} 55... Kf5 {[%clk 0:00:22.4]} 56. Kd4 {[%clk 0:00:05.2]} 56...
Ra4+ {[%clk 0:00:21.5]} 57. Kd5 {[%clk 0:00:04.9]} 57... Ra5+ {[%clk 0:00:21.7]}
58. Kd6 {[%clk 0:00:05.4]} 58... Rxe5 {[%clk 0:00:21.5]} 59. Kd7 {[%clk
0:00:05.3]} 59... Ke4 {[%clk 0:00:21.1]} 60. Kd6 {[%clk 0:00:06.2]} 60... f5
{[%clk 0:00:21.3]} 61. Kc6 {[%clk 0:00:07.1]} 61... f4 {[%clk 0:00:22.2]} 62.
Kd6 {[%clk 0:00:08]} 62... f3 {[%clk 0:00:22.4]} 0-1

[Event "Late-Titled-Tuesday-Blitz-June-04-2024"]
[Site "Chess.com"]
[Date "2024.06.04"]
[Round "5"]
[White "Bala-Afiada"]
[Black "ferdipy"]
[Result "0-1"]
[WhiteElo "2059"]
[BlackElo "2323"]
[TimeControl "180+1"]
[EndTime "14:55:59 PDT"]
[Termination "ferdipy won by resignation"]

1. d4 {[%clk 0:02:20.3]} 1... e5 {[%clk 0:02:25.4]} 2. dxe5 {[%clk 0:02:19.3]}
2... d6 {[%clk 0:02:25.9]} 3. Nf3 {[%clk 0:02:16.6]} 3... Nc6 {[%clk 0:02:25.7]}
4. Bf4 {[%clk 0:02:14.8]} 4... Bg4 {[%clk 0:02:26]} 5. Nbd2 {[%clk 0:02:11.5]}
5... dxe5 {[%clk 0:02:24.1]} 6. Nxe5 {[%clk 0:02:02.8]} 6... Nxe5 {[%clk
0:02:22.7]} 7. Bxe5 {[%clk 0:02:03.1]} 7... f6 {[%clk 0:02:21.8]} 8. Bg3 {[%clk
0:01:52.3]} 8... Bc5 {[%clk 0:02:20.6]} 9. h3 {[%clk 0:01:43.2]} 9... Bh5 {[%clk
0:02:20.3]} 10. Nf3 {[%clk 0:01:40.3]} 10... Qe7 {[%clk 0:02:20.1]} 11. Qd5
{[%clk 0:01:31.6]} 11... Bf7 {[%clk 0:02:17.2]} 12. Qxb7 {[%clk 0:01:24.8]}
12... Rd8 {[%clk 0:02:06.8]} 13. Qxc7 {[%clk 0:01:19.1]} 13... Qxc7 {[%clk
0:02:06.4]} 14. Bxc7 {[%clk 0:01:18.3]} 14... Rc8 {[%clk 0:02:05.6]} 15. Bf4
{[%clk 0:00:59.6]} 15... Ne7 {[%clk 0:02:05.6]} 16. e4 {[%clk 0:00:47.4]} 16...
Ng6 {[%clk 0:02:05.4]} 17. Bd2 {[%clk 0:00:44.9]} 17... O-O {[%clk 0:02:04]} 18.
Bd3 {[%clk 0:00:42.2]} 18... Rfd8 {[%clk 0:02:02.7]} 19. O-O {[%clk 0:00:41.8]}
19... Rb8 {[%clk 0:01:56.1]} 20. Bc3 {[%clk 0:00:38.2]} 20... Nf4 {[%clk
0:01:50.4]} 21. Rfd1 {[%clk 0:00:34.8]} 21... Rdc8 {[%clk 0:01:29.5]} 22. Bf1
{[%clk 0:00:27.1]} 22... Ne6 {[%clk 0:01:15.4]} 23. Nd4 {[%clk 0:00:20.4]} 23...
Ng5 {[%clk 0:01:13.7]} 24. Nf3 {[%clk 0:00:14.6]} 24... Nxe4 {[%clk 0:01:13.5]}
25. Be1 {[%clk 0:00:11.6]} 25... Rxb2 {[%clk 0:01:10.9]} 26. Nd2 {[%clk
0:00:09.3]} 26... Ng3 {[%clk 0:00:57.7]} 27. Nb3 {[%clk 0:00:08.2]} 27... Bb6
{[%clk 0:00:56.6]} 28. Kh2 {[%clk 0:00:06.7]} 28... Ne4 {[%clk 0:00:52.9]} 29.
f3 {[%clk 0:00:05.3]} 29... Ng5 {[%clk 0:00:50.3]} 30. Rab1 {[%clk 0:00:05.5]}
30... Rbxc2 {[%clk 0:00:49.9]} 31. Nd4 {[%clk 0:00:04.9]} 31... Rxa2 {[%clk
0:00:48.1]} 32. Nf5 {[%clk 0:00:03.5]} 32... Kh8 {[%clk 0:00:43.8]} 33. Ne7
{[%clk 0:00:03.1]} 33... Re8 {[%clk 0:00:41.7]} 34. Rd7 {[%clk 0:00:03.2]} 34...
Be6 {[%clk 0:00:39]} 35. Rb7 {[%clk 0:00:02.2]} 35... Bd4 {[%clk 0:00:34.1]} 36.
Rd1 {[%clk 0:00:01.1]} 36... Be5+ {[%clk 0:00:34.3]} 37. f4 {[%clk 0:00:01.2]}
37... Bxf4+ {[%clk 0:00:34.2]} 38. Kg1 {[%clk 0:00:01.8]} 38... h5 {[%clk
0:00:31.1]} 39. Bf2 {[%clk 0:00:01.8]} 39... Bh2+ {[%clk 0:00:24.7]} 40. Kxh2
{[%clk 0:00:01.8]} 40... Rxf2 {[%clk 0:00:25.4]} 41. Ng6+ {[%clk 0:00:02]} 41...
Kh7 {[%clk 0:00:25]} 42. Nh4 {[%clk 0:00:02.7]} 42... Bxh3 {[%clk 0:00:18.5]}
43. Bd3+ {[%clk 0:00:03.6]} 43... Kh6 {[%clk 0:00:17.8]} 44. Rg1 {[%clk
0:00:03.8]} 44... Re3 {[%clk 0:00:14.3]} 45. Nf5+ {[%clk 0:00:03.5]} 45... Bxf5
{[%clk 0:00:12.5]} 46. Bxf5 {[%clk 0:00:04.4]} 46... Rxf5 {[%clk 0:00:12.9]} 47.
Rxa7 {[%clk 0:00:05.3]} 47... Re2 {[%clk 0:00:12.2]} 48. Kg3 {[%clk 0:00:05.5]}
48... Ne4+ {[%clk 0:00:12.2]} 49. Kh2 {[%clk 0:00:05.2]} 49... Rff2 {[%clk
0:00:12.2]} 50. Raa1 {[%clk 0:00:05.7]} 50... Ng5 {[%clk 0:00:12.6]} 51. Kh1
{[%clk 0:00:05.9]} 51... Nh3 {[%clk 0:00:09.6]} 52. Raf1 {[%clk 0:00:06.8]}
52... Nxg1 {[%clk 0:00:08.9]} 53. Kxg1 {[%clk 0:00:07.7]} 53... Rxf1+ {[%clk
0:00:09.2]} 54. Kxf1 {[%clk 0:00:07.9]} 54... Rxg2 {[%clk 0:00:09.8]} 55. Kxg2
{[%clk 0:00:08.3]} 55... g5 {[%clk 0:00:10.4]} 56. Kf3 {[%clk 0:00:09.2]} 56...
g4+ {[%clk 0:00:10.7]} 57. Kg3 {[%clk 0:00:10.1]} 57... Kg5 {[%clk 0:00:11.2]}
58. Kg2 {[%clk 0:00:10.5]} 58... f5 {[%clk 0:00:12.1]} 59. Kf2 {[%clk
0:00:11.4]} 59... f4 {[%clk 0:00:13]} 60. Kg2 {[%clk 0:00:12.3]} 60... Kf5
{[%clk 0:00:13.7]} 61. Kf1 {[%clk 0:00:13.2]} 61... Ke4 {[%clk 0:00:14.6]} 62.
Kf2 {[%clk 0:00:14.1]} 62... f3 {[%clk 0:00:15.4]} 63. Kg1 {[%clk 0:00:15]}
63... Ke3 {[%clk 0:00:16]} 64. Kf1 {[%clk 0:00:15.9]} 64... f2 {[%clk
0:00:16.5]} 65. Kg2 {[%clk 0:00:16.3]} 65... Ke2 {[%clk 0:00:17.2]} 66. Kg3
{[%clk 0:00:17.1]} 66... f1=Q {[%clk 0:00:17.3]} 67. Kh4 {[%clk 0:00:18]} 67...
Qh3+ {[%clk 0:00:17]} 68. Kg5 {[%clk 0:00:18.9]} 68... g3 {[%clk 0:00:17.6]} 0-1

[Event "Late-Titled-Tuesday-Blitz-June-04-2024"]
[Site "Chess.com"]
[Date "2024.06.04"]
[Round "5"]
[White "BogdanDeac"]
[Black "SahaNeelash"]
[Result "1-0"]
[WhiteElo "3011"]
[BlackElo "2677"]
[TimeControl "180+1"]
[EndTime "14:56:02 PDT"]
[Termination "BogdanDeac won by resignation"]

1. b3 {[%clk 0:03:00.9]} 1... d5 {[%clk 0:02:59]} 2. Bb2 {[%clk 0:02:58.3]} 2...
Nf6 {[%clk 0:02:59.6]} 3. e3 {[%clk 0:02:58.3]} 3... Bf5 {[%clk 0:02:59.7]} 4.
c4 {[%clk 0:02:58.3]} 4... c6 {[%clk 0:02:59.4]} 5. cxd5 {[%clk 0:02:57.8]} 5...
cxd5 {[%clk 0:03:00.3]} 6. Bb5+ {[%clk 0:02:58.1]} 6... Nc6 {[%clk 0:02:57.5]}
7. Nf3 {[%clk 0:02:57.8]} 7... Bd7 {[%clk 0:02:42.7]} 8. O-O {[%clk 0:02:53.9]}
8... e6 {[%clk 0:02:42.8]} 9. Nc3 {[%clk 0:02:51.3]} 9... Bd6 {[%clk 0:02:43]}
10. d3 {[%clk 0:02:45.2]} 10... O-O {[%clk 0:02:43.2]} 11. e4 {[%clk 0:02:45.2]}
11... Ne5 {[%clk 0:02:18.2]} 12. Bxd7 {[%clk 0:02:41]} 12... Qxd7 {[%clk
0:02:19.1]} 13. exd5 {[%clk 0:02:40.3]} 13... exd5 {[%clk 0:02:13.2]} 14. h3
{[%clk 0:02:33.6]} 14... Nc6 {[%clk 0:02:11.3]} 15. Nb5 {[%clk 0:02:26.1]} 15...
Be7 {[%clk 0:02:11.2]} 16. Re1 {[%clk 0:02:25.1]} 16... Rac8 {[%clk 0:02:05.4]}
17. Nbd4 {[%clk 0:02:24.6]} 17... Bb4 {[%clk 0:01:53.8]} 18. Re2 {[%clk
0:02:17.9]} 18... Nxd4 {[%clk 0:01:53.3]} 19. Bxd4 {[%clk 0:02:12.5]} 19... Bc3
{[%clk 0:01:53.9]} 20. Rc1 {[%clk 0:02:12.2]} 20... Bxd4 {[%clk 0:01:53.3]} 21.
Nxd4 {[%clk 0:02:12.2]} 21... Rxc1 {[%clk 0:01:53.9]} 22. Qxc1 {[%clk
0:02:12.4]} 22... Rc8 {[%clk 0:01:54.5]} 23. Qf4 {[%clk 0:02:06.8]} 23... Qc7
{[%clk 0:01:38]} 24. Rc2 {[%clk 0:02:05.3]} 24... Qd8 {[%clk 0:01:34.3]} 25.
Rxc8 {[%clk 0:02:03.5]} 25... Qxc8 {[%clk 0:01:35.2]} 26. Nf5 {[%clk 0:02:03.7]}
26... Qd8 {[%clk 0:01:31.3]} 27. Qg5 {[%clk 0:01:53.7]} 27... g6 {[%clk
0:01:25]} 28. g4 {[%clk 0:01:17.6]} 28... Kh8 {[%clk 0:01:11.7]} 29. Nd4 {[%clk
0:01:05.5]} 29... Kg7 {[%clk 0:01:08.7]} 30. Kg2 {[%clk 0:00:57.6]} 30... Kf8
{[%clk 0:00:43.6]} 31. Qe5 {[%clk 0:00:48.9]} 31... h6 {[%clk 0:00:41.7]} 32.
Nb5 {[%clk 0:00:33]} 32... a6 {[%clk 0:00:41.3]} 33. Nc3 {[%clk 0:00:27]} 33...
Qe7 {[%clk 0:00:34.2]} 34. Qf4 {[%clk 0:00:22.2]} 34... Kg7 {[%clk 0:00:30.9]}
35. Qd4 {[%clk 0:00:22.2]} 35... Qe6 {[%clk 0:00:26]} 36. Nd1 {[%clk 0:00:21.9]}
36... Kg8 {[%clk 0:00:21.3]} 37. Ne3 {[%clk 0:00:21]} 37... b6 {[%clk
0:00:20.6]} 38. b4 {[%clk 0:00:19.3]} 38... Kf8 {[%clk 0:00:19.7]} 39. a3 {[%clk
0:00:14.6]} 39... Qc6 {[%clk 0:00:19.8]} 40. Kf3 {[%clk 0:00:10.5]} 40... Qe6
{[%clk 0:00:19.6]} 41. Ke2 {[%clk 0:00:08.3]} 41... b5 {[%clk 0:00:20]} 42. Kd2
{[%clk 0:00:08.1]} 42... Qc6 {[%clk 0:00:20.4]} 43. f4 {[%clk 0:00:06]} 43...
Ke8 {[%clk 0:00:20]} 44. h4 {[%clk 0:00:03.8]} 44... Qe6 {[%clk 0:00:19.8]} 45.
g5 {[%clk 0:00:03.9]} 45... hxg5 {[%clk 0:00:20.1]} 46. hxg5 {[%clk 0:00:04.8]}
46... Nh5 {[%clk 0:00:20.7]} 47. Nxd5 {[%clk 0:00:05]} 47... Qf5 {[%clk
0:00:14.3]} 48. Nc7+ {[%clk 0:00:04.3]} 48... Ke7 {[%clk 0:00:14.8]} 49. Nd5+
{[%clk 0:00:04]} 49... Ke8 {[%clk 0:00:10.6]} 50. Ke3 {[%clk 0:00:03.7]} 50...
Ng3 {[%clk 0:00:08.9]} 51. Qe5+ {[%clk 0:00:03.3]} 51... Qxe5+ {[%clk 0:00:09]}
52. fxe5 {[%clk 0:00:04.2]} 52... Nf5+ {[%clk 0:00:09.9]} 53. Ke4 {[%clk
0:00:04.1]} 53... Kd7 {[%clk 0:00:10.5]} 54. Nf4 {[%clk 0:00:03.9]} 54... Ng7
{[%clk 0:00:10.6]} 55. d4 {[%clk 0:00:04]} 55... Kc6 {[%clk 0:00:10]} 56. d5+
{[%clk 0:00:04.3]} 56... Kd7 {[%clk 0:00:10.9]} 57. Kd4 {[%clk 0:00:04.4]} 57...
Kc7 {[%clk 0:00:10.7]} 58. e6 {[%clk 0:00:04.1]} 58... fxe6 {[%clk 0:00:10.8]}
59. Nxe6+ {[%clk 0:00:04.4]} 59... Kd6 {[%clk 0:00:11.7]} 60. Nxg7 {[%clk
0:00:04.4]} 1-0

[Event "Late-Titled-Tuesday-Blitz-June-04-2024"]
[Site "Chess.com"]
[Date "2024.06.04"]
[Round "5"]
[White "ChEsper99"]
[Black "Eloist"]
[Result "1-0"]
[WhiteElo "2238"]
[BlackElo "2430"]
[TimeControl "180+1"]
[EndTime "14:56:03 PDT"]
[Termination "ChEsper99 won by checkmate"]

1. e4 {[%clk 0:03:00.5]} 1... e6 {[%clk 0:02:58.4]} 2. d4 {[%clk 0:02:59.6]}
2... d5 {[%clk 0:02:58.1]} 3. e5 {[%clk 0:02:59.6]} 3... c5 {[%clk 0:02:57.4]}
4. c3 {[%clk 0:02:58.3]} 4... Qb6 {[%clk 0:02:57.5]} 5. Nf3 {[%clk 0:02:54.4]}
5... Bd7 {[%clk 0:02:57.3]} 6. Be2 {[%clk 0:02:53]} 6... cxd4 {[%clk 0:02:55.7]}
7. cxd4 {[%clk 0:02:51.8]} 7... Bb5 {[%clk 0:02:55.7]} 8. O-O {[%clk 0:02:44.9]}
8... Bxe2 {[%clk 0:02:55.6]} 9. Qxe2 {[%clk 0:02:45.8]} 9... Nc6 {[%clk
0:02:55.5]} 10. Be3 {[%clk 0:02:44.4]} 10... Nge7 {[%clk 0:02:55.2]} 11. Nc3
{[%clk 0:02:39.8]} 11... Nf5 {[%clk 0:02:55]} 12. Rfd1 {[%clk 0:02:38.1]} 12...
Be7 {[%clk 0:02:53.7]} 13. a3 {[%clk 0:02:35.3]} 13... Rc8 {[%clk 0:02:52.4]}
14. Rac1 {[%clk 0:02:34]} 14... O-O {[%clk 0:02:51.7]} 15. b4 {[%clk 0:02:31.8]}
15... a6 {[%clk 0:02:42.7]} 16. Na4 {[%clk 0:02:31.3]} 16... Qb5 {[%clk
0:02:41.1]} 17. Qxb5 {[%clk 0:02:23.2]} 17... axb5 {[%clk 0:02:42]} 18. Nc3
{[%clk 0:02:13]} 18... Na7 {[%clk 0:02:41.3]} 19. Ne2 {[%clk 0:01:31.4]} 19...
Rc6 {[%clk 0:02:23.1]} 20. Rxc6 {[%clk 0:01:25.1]} 20... bxc6 {[%clk 0:02:23]}
21. Rc1 {[%clk 0:01:25.6]} 21... Rb8 {[%clk 0:02:22.2]} 22. Ne1 {[%clk 0:01:19]}
22... f6 {[%clk 0:02:17.1]} 23. Nd3 {[%clk 0:01:14.4]} 23... Rb6 {[%clk
0:02:09.9]} 24. g4 {[%clk 0:01:07.2]} 24... Nh4 {[%clk 0:01:58.2]} 25. Kf1
{[%clk 0:00:46]} 25... Ra6 {[%clk 0:01:57.9]} 26. Rc3 {[%clk 0:00:44.1]} 26...
Nf3 {[%clk 0:01:48.4]} 27. Kg2 {[%clk 0:00:40]} 27... Nh4+ {[%clk 0:01:25.5]}
28. Kg3 {[%clk 0:00:35.5]} 28... g5 {[%clk 0:01:22.9]} 29. f4 {[%clk 0:00:30]}
29... Kf7 {[%clk 0:01:00.5]} 30. exf6 {[%clk 0:00:28.2]} 30... Bxf6 {[%clk
0:00:59.9]} 31. fxg5 {[%clk 0:00:28.5]} 31... Ng6 {[%clk 0:00:37.5]} 32. gxf6
{[%clk 0:00:28]} 32... Kxf6 {[%clk 0:00:38.4]} 33. Nef4 {[%clk 0:00:24.5]} 33...
Nc8 {[%clk 0:00:29.5]} 34. Nxg6 {[%clk 0:00:23.7]} 34... hxg6 {[%clk 0:00:29.8]}
35. Bf4 {[%clk 0:00:22]} 35... g5 {[%clk 0:00:26.4]} 36. Be5+ {[%clk 0:00:21.3]}
36... Ke7 {[%clk 0:00:26.7]} 37. h4 {[%clk 0:00:20.5]} 37... gxh4+ {[%clk
0:00:26.1]} 38. Kxh4 {[%clk 0:00:21.4]} 38... Nd6 {[%clk 0:00:23.5]} 39. Bxd6+
{[%clk 0:00:20.4]} 39... Kxd6 {[%clk 0:00:23.5]} 40. g5 {[%clk 0:00:20.4]} 40...
Ra8 {[%clk 0:00:23.2]} 41. g6 {[%clk 0:00:20.6]} 41... Rh8+ {[%clk 0:00:21.5]}
42. Kg5 {[%clk 0:00:20.9]} 42... Rh1 {[%clk 0:00:22.4]} 43. g7 {[%clk
0:00:20.7]} 43... Rg1+ {[%clk 0:00:23.3]} 44. Kf6 {[%clk 0:00:20.5]} 44... Rf1+
{[%clk 0:00:22.8]} 45. Kg6 {[%clk 0:00:20.3]} 45... Rg1+ {[%clk 0:00:23.3]} 46.
Kf7 {[%clk 0:00:20.2]} 46... Rf1+ {[%clk 0:00:23.6]} 47. Kg8 {[%clk 0:00:20.5]}
47... Ke7 {[%clk 0:00:23.4]} 48. Ne5 {[%clk 0:00:19.8]} 48... Kf6 {[%clk
0:00:21.3]} 49. Rf3+ {[%clk 0:00:19.4]} 49... Rxf3 {[%clk 0:00:21]} 50. Nxf3
{[%clk 0:00:20.3]} 50... e5 {[%clk 0:00:21.2]} 51. Nxe5 {[%clk 0:00:19.8]} 51...
Kf5 {[%clk 0:00:20.3]} 52. Kf8 {[%clk 0:00:19.5]} 52... Ke4 {[%clk 0:00:21.2]}
53. g8=Q {[%clk 0:00:19.7]} 53... Kxd4 {[%clk 0:00:21.6]} 54. Nxc6+ {[%clk
0:00:20]} 54... Kc4 {[%clk 0:00:21.1]} 55. Na7 {[%clk 0:00:19]} 55... Kb3 {[%clk
0:00:19.8]} 56. Nxb5 {[%clk 0:00:19.1]} 56... Ka4 {[%clk 0:00:20.7]} 57. Nc7
{[%clk 0:00:14.3]} 57... d4 {[%clk 0:00:19.4]} 58. Qd5 {[%clk 0:00:12.9]} 58...
d3 {[%clk 0:00:19.5]} 59. b5 {[%clk 0:00:11.7]} 59... d2 {[%clk 0:00:18.6]} 60.
Qxd2 {[%clk 0:00:11.4]} 60... Kxa3 {[%clk 0:00:18.9]} 61. b6 {[%clk 0:00:10.3]}
61... Ka4 {[%clk 0:00:17.4]} 62. Qb2 {[%clk 0:00:10.2]} 62... Ka5 {[%clk
0:00:16.6]} 63. b7 {[%clk 0:00:10.4]} 63... Ka4 {[%clk 0:00:16]} 64. b8=Q {[%clk
0:00:10.7]} 64... Ka5 {[%clk 0:00:15.9]} 65. Qa8# {[%clk 0:00:11.4]} 1-0